bitfinex/quotes_SOLUSD_20251115
["timestamp","ask_amount","ask_price","bid_price","bid_amount"]
[1763178320036,0.68,143.09,143.05,24.40360209]
[1763178320923,0.68,143.09,143.03,1.75240209]
[1763178320924,1.75240209,143.08,143.03,1.75240209]
[1763178321236,2.43240209,143.07,143.02,24.40360209]
[1763178321617,0.68,143.06,143.02,24.40360209]
[1763178322039,0.68,143.06,143.03,1.75240209]
[1763178322939,0.68,143.06,143.0,7.00960836]
[1763178323245,0.68,143.06,143.02,1.75240209]
[1763178325118,0.68,143.06,142.99,1.75240209]
[1763178325119,1.75240209,143.03,142.99,1.75240209]
[1763178325436,0.68,143.06,142.98,0.1]
[1763178325437,1.75240209,143.01,142.98,0.1]
[1763178325844,0.68,143.0,142.98,0.1]
[1763178327636,1.75240209,143.02,142.98,1.85240209]
[1763178327637,0.68,143.02,142.98,1.85240209]
[1763178327836,2.43240209,143.01,142.98,0.1]
[1763178328028,1.75240209,143.0,142.98,0.1]
[1763178328344,2.43240209,143.0,142.98,0.1]
[1763178328543,2.43240209,142.99,142.98,0.1]
[1763178328733,1.75240209,142.98,142.93,1.75240209]
[1763178328921,2.43240209,142.98,142.93,1.75240209]
[1763178329119,0.68,142.97,142.93,1.75240209]
[1763178329932,2.43240209,142.97,142.93,1.75240209]
[1763178330337,0.68,142.96,142.92,24.40360209]
[1763178330645,0.68,142.96,142.91,1.75240209]
[1763178330646,2.43240209,142.96,142.91,1.75240209]
[1763178331049,0.68,142.95,142.91,1.75240209]
[1763178331944,0.68,142.95,142.94,1.75240209]
[1763178332139,0.68,142.95,142.92,1.75240209]
[1763178333542,2.43240209,142.95,142.9,0.1]
[1763178333738,1.75240209,142.97,142.92,1.75240209]
[1763178333935,0.68,142.95,142.92,1.75240209]
[1763178334951,0.68,142.95,142.9,0.1]
[1763178335146,2.43240209,142.95,142.91,24.40360209]
[1763178335352,0.68,142.95,142.92,1.75240209]
[1763178335544,0.68,142.94,142.92,1.75240209]
[1763178335947,0.68,142.98,142.93,2.41240209]
[1763178336247,0.68,142.98,142.95,1.75240209]
[1763178337036,0.68,142.98,142.92,22.6512]
[1763178337240,0.68,142.98,142.94,1.75240209]
[1763178337548,1.75240209,142.97,142.92,24.40360209]
[1763178337739,1.75240209,142.96,142.92,22.6512]
[1763178337939,1.75240209,142.96,142.91,1.75240209]
[1763178338127,0.68,142.95,142.91,24.40360209]
[1763178338531,0.68,142.95,142.92,1.75240209]
[1763178340949,0.68,142.95,142.93,1.75240209]
[1763178341136,0.68,142.95,142.92,1.75240209]
[1763178342666,1.75240209,142.94,142.9,0.1]
[1763178342968,0.68,142.95,142.9,0.1]
[1763178343306,1.75240209,142.93,142.9,0.1]
[1763178343772,0.68,142.92,142.9,0.1]
[1763178346367,7.00960836,142.96,142.9,0.1]
[1763178346669,0.68,142.92,142.9,1.85240209]
[1763178347973,0.68,142.92,142.9,0.1]
[1763178351556,104.3,142.95,142.9,0.1]
[1763178351757,1.75240209,142.94,142.9,0.1]
[1763178351961,2.43240209,142.94,142.9,0.1]
[1763178352259,0.68,142.93,142.9,0.1]
[1763178352688,2.43240209,142.93,142.9,0.1]
[1763178353067,0.68,142.92,142.9,0.1]
[1763178354186,2.43240209,142.92,142.9,0.1]
[1763178354397,0.68,142.92,142.9,0.1]
[1763178354689,0.68,142.91,142.9,0.1]
[1763178356976,3.42831015,142.91,142.9,0.1]
[1763178357299,0.68,142.91,142.9,0.1]
[1763178361781,3.42831015,142.95,142.9,3.50831015]
[1763178361984,2.74831015,142.93,142.9,0.1]
[1763178362480,0.68,142.92,142.9,0.1]
[1763178363597,0.68,142.96,142.91,3.40831015]
[1763178363813,0.68,142.96,142.92,2.74831015]
[1763178365191,0.68,142.96,142.93,2.74831015]
[1763178365583,2.74831015,142.98,142.94,2.74831015]
[1763178365897,3.42831015,142.98,142.94,2.74831015]
[1763178366076,0.68,142.97,142.94,2.74831015]
[1763178366278,0.68,142.97,142.95,2.74831015]
[1763178366777,2.74831015,142.99,142.95,2.74831015]
[1763178367089,0.68,142.99,142.96,2.74831015]
[1763178368169,3.42831015,142.99,142.95,2.74831015]
[1763178368598,0.68,142.98,142.95,2.74831015]
[1763178370492,0.68,142.98,142.96,2.74831015]
[1763178371195,0.66,142.98,142.96,2.74831015]
[1763178372175,0.66,142.99,142.96,2.74831015]
[1763178372997,0.66,142.99,142.94,0.66]
[1763178373293,0.66,142.99,142.95,2.74831015]
[1763178374297,0.66,142.99,142.96,2.74831015]
[1763178375995,0.69,143.0,142.96,3.42831015]
[1763178376182,0.69,142.99,142.96,3.42831015]
[1763178376381,0.69,142.99,142.96,2.74831015]
[1763178378089,0.69,142.99,142.95,3.42831015]
[1763178380303,0.69,142.99,142.95,2.74831015]
[1763178381100,0.69,142.99,142.96,2.74831015]
[1763178383713,3.43831015,142.99,142.94,22.6512]
[1763178383894,0.69,142.99,142.95,2.74831015]
[1763178384210,0.69,142.98,142.94,23.3312]
[1763178384383,0.69,142.98,142.95,2.74831015]
[1763178388210,0.69,142.98,142.94,22.6512]
[1763178388407,2.74831015,142.97,142.92,2.74831015]
[1763178388794,0.69,142.96,142.93,2.74831015]
[1763178389196,0.69,142.96,142.94,2.74831015]
[1763178391816,0.69,142.96,142.92,0.68]
[1763178392018,0.69,142.96,142.93,2.74831015]
[1763178393689,2.74831015,142.95,142.9,0.1]
[1763178393889,3.43831015,142.94,142.9,0.1]
[1763178394300,0.69,142.93,142.9,0.1]
[1763178396092,3.43831015,142.93,142.9,0.1]
[1763178396591,0.69,142.92,142.9,0.1]
[1763178398216,0.69,142.93,142.9,0.1]
[1763178398413,0.69,142.92,142.9,0.1]
[1763178401127,0.69,142.95,142.9,0.1]
[1763178401300,3.43831015,142.95,142.91,3.42831015]
[1763178401501,3.43831015,142.95,142.91,2.74831015]
[1763178401702,0.69,142.94,142.91,2.74831015]
[1763178403037,0.69,142.94,142.92,2.74831015]
[1763178403350,9.78882769,142.97,142.93,2.74831015]
[1763178403351,0.7,142.97,142.93,2.74831015]
[1763178403625,0.7,142.96,142.94,2.74831015]
[1763178404219,107.74831015,142.98,142.94,2.74831015]
[1763178404398,0.7,142.97,142.94,2.74831015]
[1763178404600,0.7,142.97,142.93,2.74831015]
[1763178405223,0.7,142.97,142.95,2.74831015]
[1763178405608,0.7,142.97,142.93,2.74831015]
[1763178405918,0.7,142.97,142.94,2.74831015]
[1763178407697,2.74831015,142.99,142.94,3.42831015]
[1763178407897,0.7,142.98,142.94,3.42831015]
[1763178408923,0.7,142.98,142.94,2.74831015]
[1763178409110,3.44831015,142.98,142.93,3.42831015]
[1763178409307,2.74831015,142.97,142.92,22.6512]
[1763178409509,3.44831015,142.97,142.92,25.39951015]
[1763178409713,0.7,142.96,142.92,25.39951015]
[1763178410597,2.74831015,142.95,142.9,0.1]
[1763178410807,23.3512,142.96,142.9,0.1]
[1763178410808,2.74831015,142.92,142.9,0.1]
[1763178411323,0.7,142.91,142.9,0.1]
[1763178411627,3.44831015,142.91,142.9,0.1]
[1763178411808,35.88833784,142.91,142.9,0.1]
[1763178413927,33.14002769,142.91,142.9,0.1]
[1763178414110,35.88833784,142.91,142.9,0.1]
[1763178416928,34.90002752,142.91,142.9,0.1]
[1763178420610,33.14002769,142.91,142.9,0.1]
[1763178420838,34.90002752,142.91,142.9,0.1]
[1763178422937,35.04218909,142.91,142.9,0.1]
[1763178425020,37.84792682,142.91,142.9,0.1]
[1763178425240,142.14792682,142.91,142.9,0.1]
[1763178426436,140.24576542,142.91,142.9,0.1]
[1763178426612,139.34218909,142.91,142.9,0.1]
[1763178430738,35.04218909,142.91,142.9,0.1]
[1763178433553,37.84812364,142.91,142.9,0.1]
[1763178435747,34.90002752,142.91,142.9,0.1]
[1763178439745,35.04218909,142.91,142.9,0.1]
[1763178439930,37.84812364,142.91,142.9,0.1]
[1763178443954,37.14812364,142.91,142.9,0.1]
[1763178444142,35.01218909,142.91,142.9,0.1]
[1763178444344,37.81792682,142.91,142.9,0.1]
[1763178445458,42.50789108,142.91,142.9,0.1]
[1763178449234,39.93572968,142.91,142.9,0.79]
[1763178449435,34.20002752,142.91,142.9,0.1]
[1763178449749,32.44002769,142.91,142.9,0.1]
[1763178449951,34.20002752,142.91,142.9,0.1]
[1763178450961,34.87002752,142.91,142.9,0.1]
[1763178455461,39.57292339,142.91,142.9,0.1]
[1763178457467,34.87002752,142.91,142.9,0.1]
[1763178457935,39.57094491,142.91,142.9,0.1]
[1763178458780,39.71310648,142.91,142.9,0.1]
[1763178459362,41.47310631,142.91,142.9,0.1]
[1763178459863,44.27904086,142.91,142.9,0.1]
[1763178461358,44.27904086,142.91,142.84,0.1]
[1763178461359,1.75999983,142.85,142.84,0.1]
[1763178461954,1.75999983,142.85,142.84,0.79]
[1763178462886,24.41119983,142.86,142.84,0.79]
[1763178463246,1.75999983,142.86,142.84,0.79]
[1763178464147,22.6512,142.87,142.84,0.79]
[1763178464367,1.75999983,142.86,142.84,0.79]
[1763178464664,22.6512,142.87,142.84,0.79]
[1763178464665,24.41119983,142.87,142.84,0.79]
[1763178464865,1.75999983,142.87,142.84,0.79]
[1763178465371,22.6512,142.88,142.84,0.79]
[1763178465572,24.41119983,142.88,142.84,0.79]
[1763178468267,1.75999983,142.87,142.84,0.79]
[1763178468668,24.41119983,142.87,142.84,0.79]
[1763178472891,104.3,142.9,142.85,1.75999983]
[1763178473062,104.3,142.9,142.84,0.79]
[1763178473063,24.41119983,142.89,142.86,0.71]
[1763178473708,22.6512,142.89,142.86,0.71]
[1763178473997,22.6512,142.89,142.84,0.1]
[1763178473998,1.75999983,142.87,142.84,0.81]
[1763178474997,1.75999983,142.86,142.84,0.81]
[1763178475181,0.72,142.86,142.84,0.1]
[1763178475361,1.75999983,142.85,142.84,0.1]
[1763178476976,23.3712,142.87,142.84,0.81]
[1763178476977,22.6512,142.87,142.84,0.81]
[1763178477159,1.75999983,142.88,142.84,0.81]
[1763178477362,24.41119983,142.88,142.84,0.81]
[1763178478072,24.41119983,142.88,142.84,2.56999983]
[1763178478481,24.41119983,142.88,142.85,0.71]
[1763178478971,25.40146365,142.88,142.85,0.71]
[1763178479488,22.6512,142.88,142.85,0.71]
[1763178480783,104.3,142.9,142.86,2.75026365]
[1763178480966,129.70146365,142.9,142.85,3.46026365]
[1763178481367,129.70146365,142.9,142.86,0.71]
[1763178481869,2.75026365,142.89,142.86,0.71]
[1763178487590,2.75026365,142.89,142.84,0.1]
[1763178487769,2.75026365,142.87,142.84,0.81]
[1763178488192,3.47026365,142.86,142.84,0.1]
[1763178488491,2.75026365,142.85,142.84,0.1]
[1763178488791,26.12146365,142.85,142.84,0.1]
[1763178495084,22.6512,142.85,142.84,0.82]
[1763178495284,25.40146365,142.85,142.84,0.1]
[1763178495987,22.6512,142.85,142.84,0.1]
[1763178497299,22.6512,142.85,142.84,0.82]
[1763178497882,22.6512,142.85,142.84,0.1]
[1763178500116,22.6512,142.85,142.84,0.82]
[1763178500718,22.6512,142.85,142.84,0.1]
[1763178504701,104.3,142.87,142.84,0.82]
[1763178504885,104.3,142.87,142.84,3.57026365]
[1763178505395,104.3,142.87,142.85,3.47026365]
[1763178506101,107.77026365,142.87,142.84,0.1]
[1763178506298,107.77026365,142.87,142.84,0.82]
[1763178507013,104.3,142.87,142.84,0.82]
[1763178507685,104.3,142.87,142.84,0.1]
[1763178507686,107.05026365,142.87,142.84,0.1]
[1763178507882,107.77026365,142.87,142.84,0.82]
[1763178508111,105.02,142.87,142.84,0.82]
[1763178509210,105.02,142.87,142.84,0.1]
[1763178509419,105.02,142.87,142.84,0.82]
[1763178509712,107.77026365,142.87,142.84,0.1]
[1763178509917,107.77026365,142.87,142.84,0.82]
[1763178510498,105.02,142.87,142.84,0.82]
[1763178513316,105.02,142.87,142.84,3.57026365]
[1763178513317,104.3,142.87,142.84,3.57026365]
[1763178513611,22.6512,142.88,142.84,3.57026365]
[1763178513917,23.3712,142.88,142.85,0.72]
[1763178514618,22.6512,142.88,142.85,0.72]
[1763178514809,23.3712,142.88,142.85,0.72]
[1763178520328,22.6512,142.88,142.84,2.85026365]
[1763178520510,0.72,142.87,142.84,3.57026365]
[1763178520831,22.6512,142.88,142.84,3.57026365]
[1763178521128,23.3712,142.88,142.85,0.72]
[1763178524616,22.6512,142.88,142.84,2.85026365]
[1763178524814,26.08146365,142.88,142.85,0.67]
[1763178528038,22.6512,142.88,142.85,0.67]
[1763178528332,0.68,142.91,142.85,0.67]
[1763178528541,3.43026365,142.91,142.86,2.75026365]
[1763178528923,0.68,142.9,142.87,0.67]
[1763178530226,2.75026365,142.88,142.84,0.1]
[1763178530741,0.68,142.87,142.84,0.77]
[1763178531524,0.68,142.87,142.84,3.52026365]
[1763178532140,3.43026365,142.89,142.85,3.42026365]
[1763178532638,3.43026365,142.89,142.85,2.75026365]
[1763178532943,2.75026365,142.9,142.86,3.42026365]
[1763178533124,3.43026365,142.9,142.87,0.67]
[1763178533324,3.43026365,142.9,142.86,2.75026365]
[1763178533524,3.43026365,142.9,142.87,0.67]
[1763178536649,3.19026365,142.9,142.87,0.67]
[1763178537150,0.68,142.9,142.87,0.67]
[1763178537842,3.43026365,142.9,142.87,0.67]
[1763178538248,3.43026365,142.9,142.86,2.75026365]
[1763178538550,3.43026365,142.9,142.87,0.67]
[1763178540849,2.43966069,142.9,142.87,0.67]
[1763178541148,2.43966069,142.9,142.86,2.42966069]
[1763178541352,2.43966069,142.9,142.87,0.67]
[1763178541847,0.68,142.9,142.87,0.67]
[1763178542049,2.43966069,142.9,142.86,2.42966069]
[1763178542253,0.68,142.89,142.86,0.67]
[1763178542456,0.68,142.9,142.86,2.42966069]
[1763178547553,0.68,142.9,142.86,1.75966069]
[1763178547734,0.68,142.9,142.86,2.42966069]
[1763178548556,2.43966069,142.9,142.84,0.77]
[1763178548758,0.68,142.9,142.86,1.75966069]
[1763178549231,0.68,142.9,142.86,2.42966069]
[1763178550558,0.68,142.9,142.86,0.67]
[1763178550745,114.23098926,142.94,142.89,1.75966069]
[1763178550746,106.05966069,142.94,142.89,1.75966069]
[1763178550943,2.41966069,142.95,142.9,1.75966069]
[1763178551146,0.66,142.95,142.91,1.75966069]
[1763178551352,0.66,142.94,142.91,1.75966069]
[1763178551557,1.75966069,142.96,142.91,2.41966069]
[1763178551747,0.66,142.95,142.92,1.75966069]
[1763178551948,0.66,142.96,142.93,1.75966069]
[1763178552145,0.66,142.95,142.92,1.75966069]
[1763178553342,0.66,142.95,142.91,2.41966069]
[1763178553547,2.41966069,142.95,142.91,2.41966069]
[1763178553947,1.75966069,142.95,142.91,2.41966069]
[1763178554149,0.66,142.94,142.91,2.41966069]
[1763178554656,1.75966069,142.93,142.89,1.75966069]
[1763178555046,0.66,142.92,142.89,2.43966069]
[1763178555742,2.41966069,142.93,142.89,2.43966069]
[1763178556060,0.66,142.92,142.89,2.43966069]
[1763178556263,0.66,142.92,142.9,1.75966069]
[1763178558059,0.66,142.94,142.9,2.43966069]
[1763178558362,0.66,142.94,142.91,2.43966069]
[1763178559762,0.66,142.94,142.92,1.75966069]
[1763178560366,0.66,142.94,142.91,1.75966069]
[1763178560561,0.66,142.94,142.91,2.43966069]
[1763178560763,0.66,142.94,142.91,1.75966069]
[1763178561342,0.66,142.94,142.91,2.43966069]
[1763178562468,0.66,142.94,142.91,1.75966069]
[1763178563550,2.41966069,142.94,142.89,1.75966069]
[1763178563955,0.66,142.93,142.89,2.43966069]
[1763178564272,0.66,142.93,142.9,1.75966069]
[1763178564442,0.66,142.93,142.9,2.43966069]
[1763178565966,0.66,142.93,142.9,1.75966069]
[1763178568544,0.66,142.93,142.9,2.43966069]
[1763178568750,0.66,142.94,142.91,1.75966069]
[1763178570872,0.66,142.94,142.9,2.43966069]
[1763178571073,0.66,142.94,142.9,1.75966069]
[1763178571074,2.41966069,142.94,142.9,1.75966069]
[1763178571288,0.66,142.94,142.9,2.43966069]
[1763178571582,0.66,142.93,142.9,1.75966069]
[1763178573378,0.66,142.93,142.9,2.43966069]
[1763178574079,0.66,142.95,142.91,2.43966069]
[1763178574279,106.05966069,142.96,142.91,2.43966069]
[1763178574453,0.66,142.94,142.91,2.43966069]
[1763178575683,0.66,142.94,142.91,1.75966069]
[1763178577281,0.66,142.94,142.91,2.43966069]
[1763178577583,0.66,142.94,142.91,1.75966069]
[1763178579489,0.66,142.94,142.9,2.43966069]
[1763178579666,0.66,142.94,142.91,1.75966069]
[1763178581559,0.66,142.94,142.91,2.43966069]
[1763178581957,0.66,142.94,142.91,1.75966069]
[1763178583590,0.66,142.94,142.91,2.47966069]
[1763178584277,0.66,142.94,142.88,14.03738896]
[1763178584278,2.41966069,142.94,142.9,0.72]
[1763178584486,0.66,142.94,142.9,0.72]
[1763178584691,104.3,142.96,142.92,1.75966069]
[1763178584864,0.67,142.98,142.94,1.75966069]
[1763178585062,104.3,143.0,142.94,1.75966069]
[1763178585063,6.46903269,142.99,142.94,1.75966069]
[1763178585265,7.13903269,142.99,142.94,2.47966069]
[1763178585472,0.67,142.98,142.94,1.75966069]
[1763178585673,0.67,142.98,142.95,1.75966069]
[1763178586603,0.67,142.98,142.95,2.47966069]
[1763178587399,0.67,142.98,142.95,1.75966069]
[1763178587590,0.67,142.98,142.94,0.72]
[1763178587790,0.67,142.98,142.89,0.72]
[1763178587791,1.75966069,142.96,142.89,0.72]
[1763178588086,0.67,142.96,142.93,1.75966069]
[1763178589887,0.67,142.96,142.92,2.47966069]
[1763178590190,22.6512,142.97,142.93,1.75966069]
[1763178590372,23.3212,142.97,142.95,1.75966069]
[1763178590573,0.67,142.97,142.95,1.75966069]
[1763178591384,0.67,142.98,142.95,1.75966069]
[1763178591582,0.67,142.98,142.95,2.47966069]
[1763178592474,0.67,142.98,142.95,1.75966069]
[1763178593390,0.67,142.98,142.94,0.72]
[1763178593596,0.67,142.98,142.95,1.75966069]
[1763178594477,128.71086069,143.0,142.95,1.75966069]
[1763178594680,22.6512,143.0,142.97,1.75966069]
[1763178594910,22.6512,143.0,142.98,1.75966069]
[1763178595074,23.3212,143.0,142.97,1.75966069]
[1763178595679,0.67,143.0,142.97,1.75966069]
[1763178596697,0.67,143.0,142.97,2.47966069]
[1763178597878,24.41086069,143.02,142.97,2.47966069]
[1763178598076,0.67,143.01,142.97,2.47966069]
[1763178599089,0.67,143.01,142.98,2.47966069]
[1763178599292,0.67,143.02,142.98,2.47966069]
[1763178600979,0.67,143.02,142.98,3.46460522]
[1763178601300,0.67,143.02,142.99,3.46460522]
[1763178601498,0.67,143.02,142.99,2.74460522]
[1763178602273,104.3,143.03,143.0,2.74460522]
[1763178602481,104.97,143.03,143.0,3.46460522]
[1763178604089,0.67,143.02,142.99,2.74460522]
[1763178604477,0.67,143.02,142.99,3.46460522]
[1763178604681,0.67,143.02,143.0,2.74460522]
[1763178605090,0.67,143.02,142.96,2.74460522]
[1763178605290,0.67,143.02,142.95,16.42091819]
[1763178605509,0.67,143.02,142.99,2.74460522]
[1763178605813,104.3,143.03,142.99,2.74460522]
[1763178606010,104.97,143.03,142.99,2.74460522]
[1763178608307,104.97,143.03,143.0,2.74460522]
[1763178609105,0.67,143.02,143.0,2.74460522]
[1763178611298,104.3,143.03,143.0,2.74460522]
[1763178611512,104.96,143.03,143.0,2.74460522]
[1763178613913,0.65,143.02,143.0,2.74460522]
[1763178615321,2.74460522,143.01,142.96,2.74460522]
[1763178615695,0.65,143.0,142.96,2.74460522]
[1763178617603,26.04580522,143.0,142.95,2.74460522]
[1763178617912,2.74460522,142.98,142.89,21.02680918]
[1763178618111,2.74460522,142.95,142.88,3.36460522]
[1763178618292,0.65,142.94,142.9,2.74460522]
[1763178618499,3.39460522,142.94,142.89,2.74460522]
[1763178618907,3.39460522,142.94,142.87,23.2712]
[1763178618908,3.39460522,142.93,142.88,2.74460522]
[1763178619094,0.65,142.93,142.88,2.74460522]
[1763178619296,0.65,142.92,142.88,2.74460522]
[1763178619510,3.39460522,142.92,142.88,2.74460522]
[1763178619894,0.65,142.91,142.88,2.74460522]
[1763178620303,0.65,142.91,142.84,9.84529955]
[1763178620304,0.65,142.93,142.89,2.74460522]
[1763178620711,3.39460522,142.93,142.89,2.74460522]
[1763178621396,0.65,142.92,142.89,2.74460522]
[1763178622117,0.65,142.92,142.88,3.36460522]
[1763178623303,0.65,142.92,142.88,2.74460522]
[1763178623716,0.65,142.92,142.89,2.74460522]
[1763178623911,0.65,142.95,142.91,2.74460522]
[1763178625024,0.65,142.95,142.92,2.74460522]
[1763178629408,0.65,142.95,142.91,0.62]
[1763178629614,0.65,142.95,142.92,2.74460522]
[1763178631325,0.65,142.95,142.9,0.62]
[1763178631638,0.65,142.95,142.92,2.74460522]
[1763178631935,3.39460522,142.95,142.91,2.74460522]
[1763178632105,0.65,142.94,142.91,2.74460522]
[1763178632302,0.65,142.95,142.92,3.36460522]
[1763178632534,0.65,142.95,142.92,2.74460522]
[1763178633032,0.65,142.95,142.91,2.74460522]
[1763178633329,0.65,142.95,142.91,3.36460522]
[1763178633625,0.65,142.95,142.92,2.74460522]
[1763178635121,0.65,142.95,142.91,2.74460522]
[1763178635432,0.65,142.95,142.91,3.36460522]
[1763178635629,0.65,142.95,142.91,2.74460522]
[1763178637734,0.65,142.95,142.92,2.74460522]
[1763178642921,0.65,142.95,142.91,2.74460522]
[1763178643123,0.65,142.95,142.92,2.74460522]
[1763178643551,0.65,142.95,142.91,2.74460522]
[1763178646144,0.65,142.95,142.91,3.36460522]
[1763178646444,0.65,142.95,142.89,6.99817614]
[1763178646445,2.74460522,142.94,142.89,2.74460522]
[1763178646833,0.71,142.93,142.89,2.74460522]
[1763178649837,0.71,142.95,142.91,2.74460522]
[1763178650446,3.45460522,142.95,142.89,0.62]
[1763178650642,3.45460522,142.95,142.9,2.74460522]
[1763178650832,0.71,142.94,142.9,2.74460522]
[1763178657148,0.71,142.95,142.91,3.36460522]
[1763178658767,0.71,142.95,142.91,2.74460522]
[1763178658932,105.01,142.96,142.93,2.74460522]
[1763178659346,105.01,142.96,142.93,3.36460522]
[1763178659726,104.3,142.96,142.93,2.74460522]
[1763178659946,0.71,142.95,142.93,2.74460522]
[1763178660356,105.01,142.96,142.93,2.74460522]
[1763178660835,104.3,142.96,142.93,2.74460522]
[1763178661040,105.01,142.96,142.93,2.74460522]
[1763178661246,104.3,142.96,142.93,2.74460522]
[1763178661553,0.71,142.95,142.92,2.74460522]
[1763178662955,0.71,142.95,142.92,1.75798185]
[1763178664357,0.71,142.95,142.92,2.37798185]
[1763178664546,0.71,142.95,142.92,1.75798185]
[1763178666180,2.46798185,142.95,142.88,29.6831274]
[1763178666356,2.46798185,142.95,142.9,1.75798185]
[1763178666555,0.71,142.94,142.9,1.75798185]
[1763178668069,0.71,142.95,142.92,1.75798185]
[1763178673982,0.71,142.95,142.91,0.62]
[1763178674165,0.71,142.95,142.92,1.75798185]
[1763178674492,2.46798185,142.95,142.88,23.2712]
[1763178674695,0.71,142.95,142.9,1.75798185]
[1763178674986,0.68,142.94,142.9,1.75798185]
[1763178675753,0.68,142.94,142.9,2.37798185]
[1763178676061,0.68,142.94,142.91,1.75798185]
[1763178678673,0.68,142.94,142.9,1.75798185]
[1763178687111,0.68,142.94,142.91,1.75798185]
[1763178689112,0.68,142.94,142.9,1.75798185]
[1763178692391,0.68,142.94,142.91,1.75798185]
[1763178694109,0.68,142.94,142.89,0.62]
[1763178694309,0.68,142.94,142.91,1.75798185]
[1763178695818,0.68,142.94,142.88,0.62]
[1763178696129,11.54680954,142.93,142.88,1.75798185]
[1763178696310,24.40918185,142.89,142.84,0.1]
[1763178696498,2.43798185,142.88,142.84,0.1]
[1763178696702,1.75798185,142.87,142.84,0.1]
[1763178697011,2.43798185,142.87,142.84,0.1]
[1763178697212,0.68,142.86,142.84,0.1]
[1763178701913,0.68,142.89,142.85,1.75798185]
[1763178702216,0.68,142.9,142.87,1.75798185]
[1763178702515,1.75798185,142.91,142.84,14.75275073]
[1763178702516,0.68,142.91,142.88,2.37798185]
[1763178702721,0.68,142.91,142.88,1.75798185]
[1763178707225,0.68,142.91,142.89,1.75798185]
[1763178711039,126.9512,142.93,142.88,1.75798185]
[1763178711320,104.99,142.93,142.9,1.75798185]
[1763178711522,0.69,142.95,142.92,1.75798185]
[1763178712519,0.69,142.95,142.93,1.75798185]
[1763178713497,0.69,142.95,142.92,1.75798185]
[1763178714897,0.69,142.95,142.91,1.75798185]
[1763178715538,0.69,142.95,142.91,2.37798185]
[1763178716529,0.69,142.95,142.91,0.62]
[1763178716703,1.75798185,142.92,142.86,23.2712]
[1763178716909,1.75798185,142.92,142.87,1.75798185]
[1763178717126,0.69,142.91,142.87,1.75798185]
[1763178717824,0.69,142.91,142.87,2.37798185]
[1763178718201,0.69,142.91,142.87,1.75798185]
[1763178718635,0.69,142.91,142.86,0.62]
[1763178718805,0.69,142.91,142.87,1.75798185]
[1763178719019,2.44798185,142.91,142.86,1.75798185]
[1763178719225,11.54680954,142.9,142.84,0.1]
[1763178719530,1.75798185,142.89,142.84,1.85798185]
[1763178719827,2.44798185,142.89,142.84,1.85798185]
[1763178720013,0.69,142.88,142.84,0.1]
[1763178720220,0.69,142.88,142.84,1.85798185]
[1763178721046,0.69,142.88,142.85,1.75798185]
[1763178722303,0.69,142.88,142.84,0.1]
[1763178722509,2.44798185,142.88,142.84,0.1]
[1763178723036,9.78882769,142.9,142.85,2.75042686]
[1763178723037,0.69,142.87,142.85,2.75042686]
[1763178723528,0.69,142.87,142.84,2.85042686]
[1763178724419,0.69,142.87,142.85,2.75042686]
[1763178724935,0.69,142.9,142.86,3.37042686]
[1763178725722,0.69,142.9,142.87,2.75042686]
[1763178727040,3.44042686,142.9,142.85,2.75042686]
[1763178727414,13.22925455,142.89,142.84,0.1]
[1763178727610,10.47882769,142.89,142.85,2.75042686]
[1763178727842,0.69,142.88,142.85,2.75042686]
[1763178728654,0.69,142.88,142.86,2.75042686]